bitfinex/quotes_ETHUSD_20240718
["timestamp","ask_amount","ask_price","bid_price","bid_amount"]
[1721313132523,2.8921,3457.7,3456.9,2.93218441]
[1721313132730,2.8921,3457.7,3457.1,2.89252]
[1721313132928,2.89219,3457.6,3456.9,2.93218441]
[1721313133128,2.89226,3457.5,3457.2,0.03930215]
[1721313133325,2.89226,3457.5,3456.9,2.89276]
[1721313133531,2.89231,3457.5,3457.0,0.03938365]
[1721313133860,2.89244,3457.3,3456.7,2.89293]
[1721313134085,2.89244,3457.3,3456.8,0.03946517]
[1721313134239,2.89244,3457.3,3456.5,10.21309]
[1721313134446,2.89244,3457.3,3456.7,2.89292]
[1721313134666,2.89244,3457.3,3456.8,0.03946517]
[1721313134879,2.89244,3457.3,3456.1,5.3176]
[1721313134880,2.89244,3457.3,3456.5,2.89304]
[1721313135050,2.89244,3457.3,3456.6,0.03954669]
[1721313135051,2.89252,3457.2,3456.6,0.03954669]
[1721313135293,3.0868173,3457.3,3456.3,2.89326]
[1721313135430,3.0868173,3457.3,3456.4,0.03962823]
[1721313135431,2.89293,3456.7,3456.4,0.03962823]
[1721313135773,2.89293,3456.7,3456.1,2.9034]
[1721313135935,2.89293,3456.7,3455.6,9.6276]
[1721313136133,0.578569,3456.6,3456.2,0.03839019]
[1721313136335,3.0,3457.2,3455.5,0.005]
[1721313136336,2.89349,3456.1,3455.5,0.005]
[1721313136779,2.89349,3456.1,3455.6,0.03863487]
[1721313136780,2.89354,3456.0,3455.6,0.03863487]
[1721313136946,2.89359,3456.0,3455.6,0.03863487]
[1721313137158,5.78752,3455.7,3455.6,0.03863487]
[1721313137489,2.89385,3455.6,3455.5,0.005]
[1721313137636,3.431155,3455.6,3455.5,0.005]
[1721313138072,3.431155,3455.6,3454.4,0.0548725]
[1721313138073,2.4792,3455.5,3454.4,0.0548725]
[1721313138455,2.89427,3455.1,3454.4,0.0548725]
[1721313138655,2.8942,3455.2,3454.5,0.03945002]
[1721313138969,5.4792,3455.5,3454.5,2.89475]
[1721313139278,5.4792,3455.5,3454.4,0.0548725]
[1721313139279,8.37314,3455.5,3454.6,0.03982032]
[1721313139475,2.89419,3455.2,3454.5,2.89475]
[1721313139638,5.4792,3455.5,3454.7,0.03977951]
[1721313139836,2.89353,3456.0,3455.2,2.89415]
[1721313140075,5.89345,3456.1,3454.4,0.0548725]
[1721313140383,2.89372,3455.8,3455.3,0.03970616]
[1721313140541,2.89356,3456.0,3454.5,2.89474]
[1721313140741,5.89343,3456.1,3455.4,0.03966537]
[1721313140742,3.0,3456.1,3455.4,0.03966537]
[1721313140950,2.3013,3456.2,3455.4,2.894]
[1721313141155,2.3013,3456.2,3455.5,2.89393]
[1721313141384,2.89319,3456.4,3455.5,2.93355458]
[1721313141604,2.89301,3456.6,3455.5,0.03962458]
[1721313141605,0.57862,3456.3,3455.5,0.03962458]
[1721313141786,0.57862,3456.3,3455.5,2.93355458]
[1721313141966,2.2632,3456.7,3455.7,2.89371]
[1721313142290,2.2632,3456.7,3455.8,0.03938046]
[1721313142291,2.89353,3456.0,3455.8,0.03938046]
[1721313142465,2.89302,3456.6,3455.0,2.3932]
[1721313142665,2.8932,3456.4,3455.9,0.03933968]
[1721313142869,9.6603,3457.2,3456.2,2.89332]
[1721313143067,9.6603,3457.2,3456.3,2.89326]
[1721313143068,4.24971173,3457.1,3456.3,2.89326]
[1721313143268,4.24971173,3457.1,3456.3,0.03914058]
[1721313143269,1.35706173,3457.1,3456.3,0.03914058]
[1721313143483,2.89259,3457.1,3455.7,3.0]
[1721313143654,5.27282,3457.2,3456.4,0.03909981]
[1721313143655,2.89274,3457.0,3456.4,0.03909981]
[1721313143853,5.27282,3457.2,3456.4,0.03909981]
[1721313143854,2.3803,3457.2,3456.4,2.89316]
[1721313144111,2.89235,3457.4,3456.6,2.89295]
[1721313144458,2.89244,3457.3,3456.7,0.03888838]
[1721313144652,7.9980089,3458.1,3456.7,0.03888838]
[1721313144653,2.89216,3457.7,3456.7,0.03888838]
[1721313144898,3.181396,3457.6,3456.6,2.89301]
[1721313145096,2.89251,3457.2,3456.8,0.03884762]
[1721313145391,2.89242,3457.4,3456.4,2.89318]
[1721313145593,2.89242,3457.4,3456.2,3.0]
[1721313145594,0.289216,3457.6,3456.7,2.89291]
[1721313145754,0.289216,3457.6,3457.0,2.89267]
[1721313145956,7.569168,3458.1,3456.8,2.93157023]
[1721313145957,3.2104016,3457.5,3456.8,2.93157023]
[1721313146212,0.3181316,3457.5,3457.1,0.03863796]
[1721313146352,0.3181316,3457.5,3456.1,3.0]
[1721313146688,0.289168,3458.1,3457.5,2.89224]
[1721313146885,0.289168,3458.1,3457.6,0.03843423]
[1721313147207,0.289168,3458.1,3457.0,2.89266]
[1721313147208,2.8919,3458.0,3457.0,2.89266]
[1721313147352,3.180988,3458.1,3457.1,2.89258]
[1721313147551,0.289168,3458.1,3457.2,2.8925]
[1721313147795,0.3180898,3458.0,3457.6,2.89215]
[1721313147998,0.289168,3458.1,3456.9,2.95055557]
[1721313148212,2.89158,3458.4,3457.6,2.89217]
[1721313148494,2.89227,3457.5,3456.1,2.2803]
[1721313148795,2.89218,3457.6,3456.8,2.89279]
[1721313148995,0.578421,3457.5,3456.6,2.893]
[1721313149233,0.578421,3457.5,3457.1,2.89258]
[1721313149526,2.89181,3458.1,3457.0,2.89267]
[1721313149730,2.89186,3458.0,3457.2,2.89246]
[1721313149902,2.89186,3458.0,3456.8,2.89282]
[1721313150100,3.0,3458.9,3457.0,2.89263]
[1721313150101,2.89203,3457.8,3457.0,2.89263]
[1721313150355,2.89203,3457.8,3456.9,2.89276]
[1721313150356,0.289203,3457.7,3456.9,5.78552]
[1721313150626,0.289203,3457.7,3456.9,2.89274]
[1721313150627,2.89218,3457.6,3456.9,2.89274]
[1721313150791,2.89245,3457.3,3456.6,2.893]
[1721313150988,2.89245,3457.3,3456.5,3.0]
[1721313150989,2.89253,3457.2,3456.5,3.0]
[1721313151234,2.89253,3457.2,3456.5,2.89305]
[1721313151235,2.89252,3457.2,3456.5,2.89305]
[1721313151439,0.289252,3457.1,3456.5,2.89305]
[1721313151617,0.289252,3457.1,3455.8,2.89363]
[1721313151823,2.722403,3457.7,3455.7,2.8937]
[1721313151824,2.89312,3456.5,3455.7,2.8937]
[1721313152131,5.89219,3457.6,3455.6,2.89384]
[1721313152132,2.89324,3456.4,3455.6,2.89384]
[1721313152335,2.89342,3456.2,3455.2,2.89416]
[1721313152531,2.8931,3456.5,3455.1,2.89427]
[1721313152737,2.3443,3456.6,3454.8,2.8945]
[1721313152738,2.89373,3455.8,3454.8,2.8945]
[1721313153038,3.41693,3456.4,3454.5,2.89477]
[1721313153039,2.89361,3455.9,3454.5,2.89477]
[1721313153195,2.89328,3456.3,3454.9,2.89438]
[1721313153391,0.52374,3456.4,3455.6,2.89384]
[1721313153621,6.16651,3457.3,3454.4,2.37524953]
[1721313153622,2.89261,3457.1,3456.1,2.89337]
[1721313153931,2.4931,3457.2,3456.1,2.89337]
[1721313153932,2.89268,3457.0,3456.1,2.89337]
[1721313154138,5.38563,3457.2,3456.4,2.89317]
[1721313154305,2.89265,3457.1,3456.1,2.89342]
[1721313154641,2.8926,3457.1,3456.4,2.89315]
[1721313154792,0.827813,3457.0,3456.4,2.89315]
[1721313154990,0.827813,3457.0,3456.1,2.8934]
[1721313155202,2.4931,3457.2,3455.5,5.3692]
[1721313155408,2.8926,3457.1,3456.3,2.8932]
[1721313155704,2.4931,3457.2,3456.3,2.8932]
[1721313155705,2.89269,3457.0,3456.3,2.8932]
[1721313156293,2.89218,3457.6,3456.2,2.95119191]
[1721313156494,2.89248,3457.3,3456.5,2.89304]
[1721313156703,3.470984,3457.2,3456.5,2.89304]
[1721313157019,0.578474,3457.2,3456.8,2.89279]
[1721313157222,0.289203,3457.7,3456.4,2.89316]
[1721313157532,0.289203,3457.7,3455.4,5.78794]
[1721313157533,2.4823,3456.8,3455.4,5.78794]
[1721313157738,2.4823,3456.8,3454.9,5.37246]
[1721313157739,2.89336,3456.2,3455.5,2.89393]
[1721313157912,0.578655,3456.1,3455.5,2.89393]
[1721313158240,0.578655,3456.1,3455.1,2.89424]
[1721313158540,2.4823,3456.8,3455.0,2.89433]
[1721313158541,2.89354,3456.0,3455.0,2.89433]
[1721313158744,2.89354,3456.0,3454.6,2.89464]
[1721313158745,2.89354,3456.0,3455.3,2.8941]
[1721313158956,2.8936,3455.9,3455.1,2.89421]
[1721313159241,2.8936,3455.9,3455.2,2.89418]
[1721313159448,2.89343,3456.1,3455.3,2.8941]
[1721313159449,2.89348,3456.1,3455.3,2.8941]
[1721313159612,0.578677,3456.0,3455.3,2.8941]
[1721313159950,0.578677,3456.0,3455.1,2.89425]
[1721313159951,2.89368,3455.8,3455.1,2.89425]
[1721313160106,2.89368,3455.8,3455.2,2.89417]
[1721313160303,2.89352,3456.0,3455.3,2.89405]
[1721313160530,2.89361,3455.9,3455.3,2.89405]
[1721313160736,2.89361,3455.9,3455.1,5.78845]
[1721313160916,0.578713,3455.8,3455.2,2.89417]
[1721313161136,0.578713,3455.8,3454.9,2.89438]
[1721313161441,2.89338,3456.2,3455.4,2.89396]
[1721313161651,2.89338,3456.2,3454.6,3.0]
[1721313161652,2.8931,3456.5,3455.1,2.89423]
[1721313161860,2.89335,3456.2,3455.5,2.89392]
[1721313162161,2.89336,3456.2,3455.4,2.89396]
[1721313162373,2.89334,3456.3,3455.5,2.89392]
[1721313162668,3.0,3456.7,3455.9,2.89359]
[1721313162808,2.89303,3456.6,3455.7,2.89371]
[1721313163008,3.0,3456.5,3455.9,2.89356]
[1721313163331,3.0,3456.5,3456.1,2.89336]
[1721313163527,3.0,3456.5,3455.9,2.89359]
[1721313163709,2.89338,3456.2,3455.0,3.0]
[1721313163910,2.89318,3456.4,3455.6,2.89382]
[1721313164143,2.89298,3456.7,3455.3,2.8941]
[1721313164314,5.37517,3456.8,3455.3,2.8941]
[1721313164315,2.89302,3456.6,3455.9,2.89354]
[1721313164857,2.89287,3456.8,3456.1,2.89335]
[1721313165008,2.485,3457.3,3456.1,2.89335]
[1721313165009,2.89261,3457.1,3456.1,2.89335]
[1721313165213,2.89269,3457.0,3456.2,2.89329]
[1721313165449,2.89306,3456.6,3455.6,2.89385]
[1721313165940,2.8932,3456.4,3455.6,2.89379]
[1721313166306,2.8932,3456.4,3455.8,2.89368]
[1721313166509,3.471806,3456.4,3455.8,2.89368]
[1721313167045,2.89327,3456.3,3455.6,2.89383]
[1721313167260,2.89327,3456.3,3455.2,2.89413]
[1721313167414,2.89327,3456.3,3455.4,2.89396]
[1721313167616,0.578626,3456.4,3455.8,2.8936]
[1721313167816,2.89306,3456.6,3455.8,2.8936]
[1721313168125,2.89306,3456.6,3455.4,2.89399]
[1721313168126,2.89318,3456.4,3455.4,2.89399]
[1721313168328,2.89318,3456.4,3455.5,0.03827682]
[1721313168636,2.89318,3456.4,3455.7,2.89369]
[1721313168949,2.89327,3456.3,3455.8,0.03815446]
[1721313169161,0.289327,3456.2,3455.7,2.89369]
[1721313169458,3.182677,3456.2,3455.8,0.03815446]
[1721313169813,3.182677,3456.2,3455.5,2.8939]
[1721313170015,3.182677,3456.2,3455.9,0.03811367]
[1721313170353,3.182677,3456.2,3456.0,0.03807289]
[1721313170541,2.89352,3456.0,3455.3,2.89407]
[1721313170850,0.6075937,3456.1,3455.3,2.89407]
[1721313170851,0.6075937,3456.1,3455.4,0.03831761]
[1721313171058,2.89365,3455.9,3455.4,0.03831761]
[1721313171212,0.6075937,3456.1,3455.4,0.03831761]
[1721313171415,2.89398,3455.5,3454.8,2.89452]
[1721313171638,0.289398,3455.4,3454.9,2.89437]
[1721313172511,2.89377,3455.7,3455.1,2.89423]
[1721313172754,2.89387,3455.6,3455.0,0.03856821]
[1721313173055,2.89382,3455.7,3454.9,2.89438]
[1721313173253,2.89382,3455.7,3455.1,0.03852741]
[1721313173550,2.89382,3455.7,3455.0,2.89434]
[1721313173551,2.89382,3455.7,3455.0,2.93290821]
[1721313173751,3.472684,3455.6,3455.1,0.03852741]
[1721313173954,2.89402,3455.4,3454.6,2.89466]
[1721313174125,2.89402,3455.4,3455.2,0.0372538]
[1721313174325,0.578754,3455.6,3454.6,2.89464]
[1721313174326,2.8941,3455.3,3454.6,2.89464]
[1721313174525,2.8941,3455.3,3454.7,2.8946]
[1721313174725,2.89419,3455.2,3454.7,0.03747324]
[1721313174927,2.89419,3455.2,3454.6,2.89468]
[1721313175233,0.6366734,3455.3,3454.7,2.93207324]
[1721313175430,0.6366734,3455.3,3454.8,2.8945]
[1721313175638,5.14465,3455.5,3454.9,2.89443]
[1721313175932,5.14465,3455.5,3454.9,0.03739163]
[1721313176249,2.89379,3455.7,3454.9,0.03739163]
[1721313176461,2.89379,3455.7,3455.1,2.89424]
[1721313176616,2.8937,3455.8,3455.1,2.89424]
[1721313176817,0.578734,3455.7,3455.2,2.93147351]
[1721313177059,2.89358,3456.0,3455.2,2.93147351]
[1721313177227,2.89369,3455.8,3455.2,0.03730351]
[1721313177417,2.8582937,3456.1,3455.3,2.89402]
[1721313177619,2.89356,3456.0,3455.3,2.89402]
[1721313177819,2.89356,3456.0,3455.4,0.03722192]
[1721313178020,2.89377,3455.7,3455.4,0.03722192]
[1721313178326,0.60411807,3455.9,3455.5,0.03718113]
[1721313178523,0.60411807,3455.9,3455.3,2.89403]
[1721313178743,0.60411807,3455.9,3455.4,0.03722192]
[1721313179524,0.289327,3456.2,3455.7,2.89371]
[1721313179725,0.289327,3456.2,3455.8,0.03705877]
[1721313180268,0.289327,3456.2,3455.8,2.89368]
[1721313180556,2.89317,3456.5,3455.9,0.0369837]
[1721313180772,2.89317,3456.5,3455.4,2.89398]
[1721313180773,2.89334,3456.3,3455.7,2.89376]
[1721313180951,2.89334,3456.3,3455.8,0.03700391]
[1721313181124,2.89317,3456.5,3455.7,2.89376]
[1721313181319,2.89335,3456.2,3455.8,0.03700391]
[1721313181624,3.182815,3456.1,3455.4,2.89396]
[1721313181831,2.89327,3456.3,3455.9,0.03696313]
[1721313182168,2.89335,3456.2,3456.0,0.03692235]
[1721313182363,2.89343,3456.1,3456.0,0.03692235]
[1721313182576,2.89343,3456.1,3455.5,2.89392]
[1721313182744,2.89327,3456.3,3455.5,2.89392]
[1721313183079,2.89327,3456.3,3455.3,2.89408]
[1721313183080,2.89313,3456.5,3455.7,2.89371]
[1721313183227,0.816838,3456.4,3455.7,2.89371]
[1721313183427,0.816838,3456.4,3455.6,2.93091548]
[1721313183428,0.816838,3456.4,3455.8,2.93067391]
[1721313183626,2.3823,3456.6,3455.8,2.93067391]
[1721313183627,2.3823,3456.6,3456.0,2.84345]
[1721313183826,2.4929,3457.1,3456.3,2.89319]
[1721313184030,2.4929,3457.1,3456.4,2.89317]
[1721313184255,2.4929,3457.1,3456.2,2.89328]
[1721313184444,2.4929,3457.1,3456.5,0.03671849]
[1721313184670,2.89333,3456.3,3455.4,2.89401]
[1721313184830,2.89367,3455.9,3455.1,2.89421]
[1721313185173,2.89385,3455.6,3454.6,2.89467]
[1721313185337,2.8941,3455.4,3454.7,0.03684218]
[1721313185674,2.89412,3455.3,3454.6,2.89467]
[1721313185976,2.89412,3455.3,3454.7,0.03684218]
[1721313186274,2.89412,3455.3,3454.7,2.93144218]
[1721313186783,2.8938,3455.7,3454.8,2.89446]
[1721313187071,3.69382962,3456.2,3454.8,2.89446]
[1721313187072,0.60046481,3455.9,3454.8,2.89452]
[1721313187276,0.60046481,3455.9,3455.4,2.89395]
[1721313187658,0.60046481,3455.9,3455.7,2.89375]
[1721313187887,0.60046481,3455.9,3455.5,0.03651578]
[1721313187888,0.60046481,3455.9,3455.8,5.78736]
[1721313188159,0.60046481,3455.9,3455.8,5.82380656]
[1721313188853,0.60046481,3455.9,3455.8,2.93012656]
[1721313189039,0.60046481,3455.9,3455.8,0.03644656]
[1721313189353,0.60046481,3455.9,3455.4,2.89396]
[1721313189548,0.60046481,3455.9,3455.6,2.89379]
[1721313189747,0.60046481,3455.9,3455.4,2.89396]
[1721313189748,0.60046481,3455.9,3455.7,0.03634336]
[1721313189960,0.60046481,3455.9,3455.5,2.89393]
[1721313190168,0.60046481,3455.9,3455.6,0.03638415]
[1721313190342,1.32928901,3455.9,3454.3,3.0]
[1721313190542,2.3668,3455.8,3454.9,2.89437]
[1721313190776,2.3668,3455.8,3455.0,0.03666148]
[1721313191141,5.26054,3455.8,3455.1,2.89427]
[1721313191340,2.89409,3455.4,3455.2,0.03657988]
[1721313191761,2.89409,3455.4,3455.3,0.03653909]
[1721313191966,2.89409,3455.4,3454.4,0.0548725]
[1721313191967,3.472887,3455.4,3454.6,2.89466]
[1721313192179,2.89409,3455.4,3454.7,2.9313839]
[1721313192337,2.89411,3455.3,3454.7,0.0367839]
[1721313192538,2.89424,3455.2,3454.5,2.89477]
[1721313192890,2.89397,3455.5,3454.9,2.89441]
[1721313193080,0.815455,3455.5,3454.9,2.89441]
[1721313193282,0.815455,3455.5,3455.1,2.89426]
[1721313193579,0.60046481,3456.0,3455.3,2.89408]
[1721313193781,0.60046481,3456.0,3455.4,0.03649829]
[1721313193987,0.60046481,3456.0,3455.7,2.8937]
[1721313194192,0.60046481,3456.0,3455.8,0.03633514]
[1721313194397,0.60046481,3456.0,3455.7,2.8937]
[1721313194570,0.60046481,3456.0,3455.8,0.03633514]
[1721313194767,0.60046481,3456.0,3455.9,2.8936]
[1721313195080,0.60046481,3456.0,3455.9,5.82349436]
[1721313196398,0.60046481,3456.0,3455.9,8.77496153]
[1721313196572,0.60046481,3456.0,3455.9,11.71709436]
[1721313197093,3.05176481,3457.3,3456.1,2.89343]
[1721313197253,3.05176481,3457.3,3456.7,2.89289]
[1721313197254,3.58612181,3457.3,3456.7,2.89289]
[1721313197682,3.58612181,3457.3,3456.5,2.89309]
[1721313197683,2.89251,3457.2,3456.8,0.03470132]
[1721313198071,3.49297481,3457.2,3456.6,2.893]
[1721313198290,0.60046481,3457.0,3455.9,3.0]
[1721313198608,2.89261,3457.1,3456.4,2.89317]
[1721313198769,2.89261,3457.1,3456.5,0.03482362]
[1721313198770,2.89278,3456.9,3456.5,0.03482362]
[1721313198958,2.89278,3456.9,3456.1,3.0]
[1721313199153,2.89278,3456.9,3456.2,2.92827593]
[1721313199406,2.89268,3457.0,3456.3,2.89326]
[1721313199555,1.01262374,3457.0,3456.4,2.92804438]
[1721313199762,1.01262374,3457.0,3456.5,2.89304]
[1721313199957,1.01262374,3457.0,3456.6,2.92778285]
[1721313200489,1.01262374,3457.0,3456.6,0.03478285]
[1721313200793,1.01262374,3457.0,3456.4,2.89311]
[1721313201100,1.01262374,3457.0,3456.5,0.03482362]
[1721313201101,0.45056885,3456.9,3456.5,0.03482362]
[1721313201475,0.45056885,3456.9,3455.6,2.89381]
[1721313201476,3.34332885,3456.9,3456.0,2.89351]
[1721313201802,3.34332885,3456.9,3455.2,2.89412]
[1721313201803,2.89348,3456.1,3455.2,2.89412]
[1721313201967,2.89348,3456.1,3455.4,2.89402]
[1721313202493,2.89348,3456.1,3455.5,2.89392]
[1721313202494,0.63872648,3456.1,3455.5,2.89392]
[1721313202657,0.63872648,3456.1,3455.5,2.9279203]
[1721313203010,2.89353,3456.0,3455.5,0.0340003]
[1721313203364,2.89353,3456.0,3455.6,0.03395951]
[1721313203596,2.89353,3456.0,3455.3,2.89407]
[1721313203896,3.59613613,3456.0,3455.4,0.03404109]
[1721313204319,2.89382,3455.7,3455.4,0.03404109]
[1721313204612,5.18486,3455.9,3455.5,0.0340003]
[1721313204792,2.89368,3455.8,3455.1,2.89418]
[1721313204997,3.76168048,3455.7,3455.2,0.03412268]
[1721313205160,2.89166481,3455.9,3455.1,2.89419]
[1721313205504,1.20092962,3456.3,3455.2,0.03412268]
[1721313205505,0.60046481,3456.0,3455.2,0.03412268]
[1721313205658,0.60046481,3456.2,3455.6,2.89379]
[1721313205861,3.49372481,3456.3,3455.5,2.89386]
[1721313206103,1.2647152,3456.3,3455.7,2.92762873]
[1721313206305,1.2647152,3456.3,3455.6,2.89382]
[1721313206603,2.96006481,3456.4,3455.7,0.03396158]
[1721313206604,5.85329481,3456.4,3455.7,0.03396158]
[1721313206769,5.85329481,3456.4,3455.5,2.89391]
[1721313206770,2.89335,3456.2,3455.5,2.89391]
[1721313207108,2.89355,3456.0,3455.6,0.03398351]
[1721313207277,2.89373,3455.8,3455.6,0.03398351]
[1721313207604,0.60046481,3455.9,3454.6,3.0]
[1721313207788,3.0438162,3455.8,3455.1,2.89424]
[1721313207987,3.0438162,3455.8,3454.9,2.89436]
[1721313208299,2.89393,3455.6,3455.0,0.03422828]
[1721313208467,2.89396,3455.5,3455.0,0.03422828]
[1721313208668,2.89396,3455.5,3454.7,2.89456]
[1721313208897,2.89382,3455.7,3455.1,0.03418748]
[1721313209058,0.74386482,3455.7,3455.1,2.89419]
[1721313209261,0.74386482,3455.7,3455.2,0.03414668]
[1721313209509,3.49401481,3456.0,3455.2,0.03414668]
[1721313209690,0.60046481,3455.9,3455.4,2.89402]
[1721313210010,2.89374,3455.8,3455.0,2.89428]
[1721313210160,0.60046481,3455.9,3454.4,0.0548725]
[1721313210366,3.49401481,3456.0,3455.3,2.89409]
[1721313210707,3.49401481,3456.0,3455.4,0.03406509]
[1721313210861,0.60046481,3456.0,3455.5,2.89392]
[1721313211065,0.60046481,3456.2,3455.5,2.89392]
[1721313211291,5.78752,3455.7,3455.6,0.03398351]
[1721313211607,5.78752,3455.7,3454.7,2.89455]
[1721313211608,2.89398,3455.5,3454.7,2.89455]
[1721313211767,3.49535867,3455.5,3454.8,0.03430989]
[1721313211961,2.89403,3455.4,3454.7,2.89455]
[1721313212311,2.89419,3455.2,3454.8,0.03430989]
[1721313212514,2.89407,3455.4,3454.8,0.03430989]
[1721313212666,2.89415,3455.3,3454.5,2.89469]
[1721313212860,2.89419,3455.2,3454.9,0.03426908]
[1721313213066,0.75172334,3455.4,3454.4,0.0548725]
[1721313213273,2.89427,3455.1,3455.0,0.03422828]
[1721313213519,2.89437,3455.0,3454.4,0.0548725]
[1721313214593,2.89449,3454.9,3454.4,0.0548725]
[1721313215063,0.40735914,3455.3,3454.4,0.0548725]
[1721313215064,0.60137867,3455.1,3454.4,0.0548725]
[1721313215271,2.89457,3454.8,3454.4,0.0548725]
[1721313215472,3.49587867,3454.9,3454.4,0.0548725]
[1721313215674,2.89461,3454.7,3454.4,0.0548725]
[1721313217463,5.78938,3454.6,3454.5,0.03483513]
[1721313217663,6.368318,3454.6,3454.5,0.03483513]
[1721313218116,5.78954,3454.5,3454.4,0.0548725]
[1721313218882,6.39091867,3454.5,3454.4,0.0548725]
[1721313219289,9.58637801,3454.5,3454.4,0.0548725]
[1721313219494,9.8338765,3454.5,3454.4,0.0548725]
[1721313219667,11.33197771,3454.5,3454.4,0.0548725]
[1721313220609,10.73241121,3454.5,3454.4,0.0548725]
[1721313222304,4.39287121,3454.5,3454.4,0.0548725]
[1721313223467,7.28764121,3454.5,3454.4,0.0548725]
[1721313224595,4.39287121,3454.5,3454.4,0.0548725]
[1721313225439,7.28764121,3454.5,3454.4,0.0548725]
[1721313225625,4.39287121,3454.5,3454.4,0.0548725]
[1721313226017,1.49810121,3454.5,3454.4,0.0548725]
[1721313226228,5.89445,3454.9,3454.4,0.0548725]
[1721313226229,0.19108058,3455.0,3454.4,0.09013956]
[1721313226411,2.89429,3455.1,3454.4,2.9496625]
[1721313226739,2.89395,3455.5,3454.9,2.89441]
[1721313227032,2.89378,3455.7,3455.0,0.03496901]
[1721313227235,2.89378,3455.7,3454.9,2.89441]
[1721313227595,2.89391,3455.6,3454.9,2.89441]
[1721313227839,3.719871,3455.7,3454.9,2.89441]
[1721313227840,2.89395,3455.5,3455.0,0.03485237]
[1721313228209,2.89395,3455.5,3454.8,2.89444]
[1721313228394,2.89395,3455.5,3454.9,0.03489318]
[1721313228594,2.89395,3455.5,3454.4,0.0548725]
[1721313228595,2.89447,3454.9,3454.4,0.0548725]
[1721313228841,3.473349,3454.9,3454.5,0.03500497]
[1721313229131,3.473349,3454.9,3454.4,0.0548725]
[1721313229337,3.473349,3454.9,3454.6,0.03496416]
[1721313229541,3.473349,3454.9,3454.5,0.03500497]
[1721313229840,2.8946,3454.7,3454.6,0.03496416]
[1721313229999,2.8946,3454.7,3454.4,0.0548725]
[1721313230000,2.89475,3454.6,3454.4,0.0548725]
[1721313230199,5.78954,3454.5,3454.4,0.0548725]
[1721313230409,5.78954,3454.5,3454.4,0.0450921]
[1721313231846,8.68431,3454.5,3454.4,0.0450921]
[1721313232146,13.47996349,3454.5,3454.4,0.0450921]
[1721313232645,10.03519349,3454.5,3454.4,0.0450921]
[1721313233210,12.92996349,3454.5,3454.4,0.0450921]
[1721313233445,10.58519349,3454.5,3454.4,0.0450921]
[1721313233619,13.47996349,3454.5,3454.4,0.0450921]
[1721313233959,18.62663349,3454.5,3454.4,0.0450921]
[1721313234106,24.79540349,3454.5,3454.4,2.1e-06]
[1721313234307,21.52140349,3454.5,3454.4,2.1e-06]
[1721313234828,21.82122949,3454.5,3454.4,2.1e-06]
[1721313235424,22.7186847,3454.5,3454.4,2.1e-06]
[1721313235755,10.93771,3453.9,3453.8,0.005]
[1721313235954,15.871,3453.9,3453.8,0.005]
[1721313237643,18.76627,3453.9,3453.8,0.005]
[1721313239562,21.66154,3453.9,3453.8,1e-05]
[1721313239745,2.89674,3452.2,3451.9,0.1516676]
[1721313240051,2.89655,3452.4,3451.9,0.1516676]
[1721313240052,2.89678,3452.1,3452.0,0.035456]
[1721313240429,3.274,3452.8,3452.0,0.035456]
[1721313240725,2.89637,3452.6,3451.9,0.1516676]
[1721313241112,2.89637,3452.6,3452.0,2.932316]
[1721313241623,7.28,3452.9,3452.0,2.932286]
[1721313241814,2.89606,3453.0,3452.3,2.89656]
[1721313242016,3.0,3452.9,3452.4,0.03529253]
[1721313242241,5.89616,3452.9,3452.4,0.03529253]
[1721313242425,2.89605,3453.0,3452.2,2.8967]
[1721313242628,2.89588,3453.2,3452.2,2.3835]
[1721313242820,7.28,3453.6,3452.2,2.3835]
[1721313243029,2.89569,3453.4,3452.7,2.89623]
[1721313243243,2.89569,3453.4,3452.8,0.03512909]
[1721313243412,2.89554,3453.6,3452.8,2.93128909]
[1721313243613,2.89544,3453.7,3452.9,2.89605]
[1721313243848,2.89544,3453.7,3453.0,0.03504739]
[1721313244062,2.89549,3453.7,3453.0,0.03504739]
[1721313244218,0.427878,3453.6,3452.8,2.89619]
[1721313244549,2.8953,3453.9,3452.2,5.2802]
[1721313244550,2.8953,3453.9,3453.0,2.89598]
[1721313244753,2.89513,3454.1,3452.9,0.03508824]
[1721313244955,10.17496,3454.3,3453.1,2.8959]
[1721313244956,2.89542,3453.8,3453.1,2.8959]
[1721313245246,2.89514,3454.1,3453.3,2.89576]
[1721313245462,2.89514,3454.1,3452.3,3.0]
[1721313245619,2.89533,3453.9,3452.5,2.89644]
[1721313245815,2.89547,3453.7,3452.6,3.0352108]
[1721313246012,7.28,3454.3,3452.6,0.0352108]
[1721313246013,3.274,3454.2,3452.6,0.0352108]
[1721313246243,2.89564,3453.5,3451.6,2.89713]
[1721313246446,2.8957,3453.4,3452.7,2.89623]
[1721313246664,2.8957,3453.4,3452.8,0.03503143]
[1721313246873,2.8957,3453.4,3452.8,2.93121143]
[1721313247229,2.8957,3453.4,3452.8,0.03503143]
[1721313247429,2.89578,3453.3,3452.8,0.03503143]
[1721313247648,2.89578,3453.3,3452.7,2.89628]
[1721313247825,2.89578,3453.3,3452.8,0.0350537]
[1721313248037,2.89578,3453.3,3452.7,2.89628]
[1721313248373,2.89611,3452.9,3452.8,0.0350537]
[1721313248676,2.89643,3452.6,3451.8,2.89702]
[1721313248837,6.16999,3453.1,3451.8,2.89702]
[1721313249036,2.89652,3452.5,3452.0,0.03538061]
[1721313249259,2.89678,3452.1,3452.0,0.03538061]
[1721313249463,2.89687,3452.0,3451.3,2.89745]
[1721313249839,2.89687,3452.0,3451.9,0.18604414]
[1721313250351,2.89687,3452.0,3451.9,0.1516676]
[1721313251078,6.373097,3452.0,3451.9,0.1516676]
[1721313252771,3.476227,3452.0,3451.9,0.1516676]
[1721313252936,2.89672,3452.2,3451.9,0.1516676]
[1721313253140,7.28,3452.7,3452.1,2.89676]
[1721313253389,10.1763,3452.7,3452.0,0.03433566]
[1721313253682,2.89625,3452.8,3451.9,0.1516676]